bitfinex-derivatives/quotes_BNBF0:USTF0_20250904
["timestamp","ask_amount","ask_price","bid_price","bid_amount"]
[1757012910768,0.92528327,843.15,842.08,1.0629753]
[1757012910967,0.71886901,843.14,842.08,1.0629753]
[1757012911167,0.71886901,843.14,842.1,1.0629753]
[1757012912370,0.71886901,843.14,842.12,1.0629753]
[1757012912570,0.71886901,843.14,842.11,1.0629753]
[1757012913070,0.20641426,843.15,842.06,1.0629753]
[1757012913270,0.20641426,843.15,842.07,1.0629753]
[1757012913470,0.20641426,843.15,842.03,1.0629753]
[1757012913671,0.9950179,843.15,842.04,1.0629753]
[1757012913971,1.50747265,843.14,842.02,1.0629753]
[1757012914176,1.50747265,843.13,842.02,1.0629753]
[1757012914369,0.71886901,843.12,842.02,1.0629753]
[1757012914671,0.78860364,843.02,842.01,1.0629753]
[1757012914874,0.71886901,843.01,842.01,1.0629753]
[1757012915174,0.71886901,843.01,842.0,1.0629753]
[1757012915369,0.78860364,843.03,840.95,0.206519]
[1757012915370,0.71886901,843.02,841.99,1.0629753]
[1757012915574,0.71886901,843.03,841.98,1.0629753]
[1757012915769,0.71886901,843.04,841.98,1.0629753]
[1757012916371,0.71886901,843.04,841.97,1.0629753]
[1757012916675,0.71886901,843.05,841.96,1.0629753]
[1757012916875,0.71886901,843.06,841.96,1.0629753]
[1757012917075,0.71886901,843.06,841.95,1.0629753]
[1757012917372,0.71886901,843.06,841.94,1.0629753]
[1757012917575,0.78860364,843.09,841.93,1.0629753]
[1757012917576,0.71886901,843.08,841.93,1.0629753]
[1757012917976,0.71886901,843.08,841.92,1.0629753]
[1757012918173,0.20641426,843.15,841.92,1.0629753]
[1757012918174,0.71886901,843.09,841.92,1.0629753]
[1757012918374,0.71886901,843.1,841.91,1.0629753]
[1757012918577,0.71886901,843.1,841.9,1.0629753]
[1757012918777,0.71886901,843.11,841.9,1.0629753]
[1757012919073,0.71886901,843.11,841.89,1.0629753]
[1757012919377,0.71886901,843.12,841.88,1.0629753]
[1757012919673,0.71886901,843.12,841.87,1.0629753]
[1757012919878,0.71886901,843.13,841.87,1.0629753]
[1757012920273,0.71886901,843.14,841.86,1.0629753]
[1757012920678,0.92528327,843.15,841.85,1.0629753]
[1757012920979,0.92528327,843.15,841.86,1.0629753]
[1757012921277,1.71388691,843.15,841.86,1.0629753]
[1757012921478,0.71931246,843.14,841.85,1.0629753]
[1757012921675,0.92572672,843.15,841.86,1.0629753]
[1757012922079,0.92572672,843.15,841.85,1.0629753]
[1757012922380,0.92572672,843.15,841.86,1.0629753]
[1757012923584,0.92572672,843.15,841.85,1.0629753]
[1757012923782,0.71931246,843.14,841.86,1.0629753]
[1757012924085,0.92572672,843.15,841.86,1.0629753]
[1757012924285,0.92572672,843.15,841.85,1.0629753]
[1757012924785,0.71931246,843.14,841.85,1.0629753]
[1757012925381,0.20641426,843.15,841.85,1.0629753]
[1757012925581,0.20641426,843.15,841.84,1.0629753]
[1757012925786,0.20641426,843.15,841.85,1.0629753]
[1757012925986,0.20641426,843.15,841.84,1.0629753]
[1757012926183,0.92572672,843.15,841.84,1.0629753]
[1757012926388,0.71931246,843.14,841.83,1.0629753]
[1757012926683,0.20641426,843.15,841.83,1.0629753]
[1757012927386,0.20641426,843.15,841.84,1.0629753]
[1757012928584,0.20641426,843.15,841.81,1.0629753]
[1757012928782,0.78860364,843.14,841.77,1.0629753]
[1757012928986,0.78860364,843.11,841.76,1.0629753]
[1757012929189,0.71931246,843.1,841.77,1.0629753]
[1757012929388,0.78860364,843.12,841.75,1.0629753]
[1757012929589,0.71858177,843.11,841.75,1.0629753]
[1757012929792,1.50718541,843.11,841.75,1.0629753]
[1757012929987,0.71858177,843.1,841.75,1.0629753]
[1757012930391,0.71858177,843.11,841.75,1.0629753]
[1757012930589,0.71858177,843.11,841.74,1.0629753]
[1757012930988,1.50718541,843.11,841.74,1.0629753]
[1757012931188,0.71858177,843.1,841.74,1.0629753]
[1757012931387,0.71858177,843.1,841.73,1.0629753]
[1757012931589,0.71858177,843.11,841.73,1.0629753]
[1757012932092,1.50718541,843.11,841.74,1.0629753]
[1757012932393,0.78860364,843.08,841.77,1.0629753]
[1757012932693,0.71858177,843.07,841.76,1.0629753]
[1757012932892,0.71858177,843.08,841.75,1.0629753]
[1757012933090,0.71858177,843.09,841.75,1.0629753]
[1757012933694,0.71858177,843.09,841.74,1.0629753]
[1757012933995,0.71858177,843.1,841.74,1.0629753]
[1757012934189,1.50718541,843.1,841.74,1.0629753]
[1757012934394,0.71858177,843.09,841.74,1.0629753]
[1757012934590,1.50718541,843.1,841.75,1.0629753]
[1757012934793,1.50718541,843.1,840.95,0.206519]
[1757012934794,0.71858177,843.09,841.72,1.0629753]
[1757012934996,0.78860364,843.07,841.67,1.0629753]
[1757012935195,0.71858177,843.06,841.68,1.0629753]
[1757012935393,0.71858177,843.06,841.66,1.0629753]
[1757012935597,0.71858177,843.07,841.66,1.0629753]
[1757012936092,0.71858177,843.07,841.65,1.0629753]
[1757012936295,0.71858177,843.08,841.65,1.0629753]
[1757012936596,0.71858177,843.08,841.64,1.0629753]
[1757012936996,0.71858177,843.09,841.64,1.0629753]
[1757012937193,1.50718541,843.09,841.64,1.0629753]
[1757012937392,0.71858177,843.08,841.65,1.0629753]
[1757012937693,0.71858177,843.08,841.52,1.0629753]
[1757012937897,0.71858177,843.14,841.58,1.0629753]
[1757012938092,0.20641426,843.15,841.58,1.0629753]
[1757012939491,0.20641426,843.15,840.95,0.206519]
[1757012939492,0.20641426,843.15,841.59,1.0629753]
[1757012939694,0.92499603,843.15,841.59,1.0629753]
[1757012939992,0.71858177,843.14,841.59,1.0629753]
[1757012940194,0.20641426,843.15,841.59,1.0629753]
[1757012940394,0.20641426,843.15,841.58,1.0629753]
[1757012940692,0.78860364,843.09,841.75,1.0629753]
[1757012940897,0.71858177,843.08,841.75,1.0629753]
[1757012941398,0.71786236,843.09,841.83,1.0629753]
[1757012941596,0.71786236,843.12,841.83,1.0629753]
[1757012942901,1.506466,843.12,841.85,1.0629753]
[1757012943198,0.71786236,843.11,841.85,1.0629753]
[1757012943397,0.71786236,843.11,841.82,1.0629753]
[1757012944099,0.71786236,843.11,841.8,1.0629753]
[1757012944300,0.78860364,843.07,841.75,1.0629753]
[1757012944497,0.71786236,843.06,841.75,1.0629753]
[1757012945502,0.71786236,843.06,841.76,1.0629753]
[1757012945697,0.71786236,843.06,841.61,1.0629753]
[1757012946000,0.71786236,843.14,841.62,1.0629753]
[1757012946196,0.20641426,843.15,841.62,1.0629753]
[1757012946401,0.20641426,843.15,841.63,1.0629753]
[1757012946598,0.20641426,843.15,841.62,1.0629753]
[1757012947203,0.20641426,843.15,841.63,1.0629753]
[1757012948602,0.20641426,843.15,841.64,1.0629753]
[1757012948806,0.20641426,843.15,841.67,1.0629753]
[1757012952407,0.20641426,843.15,841.68,1.0629753]
[1757012954411,0.20641426,843.15,841.69,1.0629753]
[1757012955606,0.78860364,843.08,841.8,1.0629753]
[1757012955807,0.71909337,843.07,841.8,1.0629753]
[1757012956307,0.71909337,843.07,841.81,1.0629753]
[1757012956511,0.78860364,843.06,841.81,1.0629753]
[1757012956707,0.71909337,843.05,841.83,1.0629753]
[1757012957411,1.50769701,843.05,841.84,1.0629753]
[1757012957609,0.71909337,843.04,841.84,1.0629753]
[1757012958210,0.78860364,842.99,841.92,1.0629753]
[1757012958514,0.78860364,842.97,841.93,1.0629753]
[1757012958715,0.78860364,842.95,841.96,1.0629753]
[1757012958911,0.71909337,842.94,841.96,1.0629753]
[1757012959416,1.50769701,842.94,841.97,1.0629753]
[1757012959616,0.71909337,842.93,841.97,1.0629753]
[1757012960416,1.50769701,842.93,841.98,1.0629753]
[1757012960718,0.71909337,842.92,842.15,0.79791215]
[1757012960915,0.7196468,842.93,842.15,0.79791215]
[1757012961416,0.78860364,842.92,842.16,0.79791215]
[1757012961615,0.7196468,842.91,842.16,0.79791215]
[1757012962413,1.50852749,842.91,842.17,0.79791215]
[1757012962614,0.71992385,842.9,842.17,0.79791215]
[1757012962818,0.71992385,842.9,842.16,0.79791215]
[1757012963018,0.71992385,842.92,842.16,0.79791215]
[1757012963415,0.78860364,842.91,842.16,0.79791215]
[1757012963716,0.71992385,842.9,842.16,0.79791215]
[1757012964414,1.50852749,842.9,842.16,0.79791215]
[1757012964616,0.71992385,842.89,842.16,0.79791215]
[1757012965417,0.71992385,842.89,842.17,0.79791215]
[1757012965617,1.50852749,842.89,842.17,0.79791215]
[1757012965820,0.71992385,842.88,842.17,0.79791215]
[1757012966422,1.50852749,842.88,842.18,0.79791215]
[1757012966618,0.71992385,842.87,842.18,0.79791215]
[1757012967317,0.71992385,842.87,842.02,1.0629753]
[1757012967318,0.71992385,842.87,842.13,0.79791215]
[1757012967522,0.78860364,842.9,842.1,0.79791215]
[1757012967722,0.71992385,842.89,842.1,0.79791215]
[1757012968420,0.71992385,842.89,842.11,0.79791215]
[1757012968724,0.78860364,842.86,842.07,0.79791215]
[1757012968921,0.71992385,842.85,842.07,0.79791215]
[1757012969620,1.50852749,842.85,842.07,0.79791215]
[1757012969825,0.71992385,842.84,842.07,0.79791215]
[1757012970426,1.50852749,842.84,842.08,0.79791215]
[1757012970627,0.71992385,842.83,842.08,0.79791215]
[1757012970921,0.78860364,842.84,842.08,0.79791215]
[1757012971524,0.20641426,843.15,842.09,0.79791215]
[1757012971525,0.78860364,842.83,842.09,0.79791215]
[1757012972425,0.78860364,842.82,842.1,0.79791215]
[1757012973726,0.78860364,842.8,842.11,0.79791215]
[1757012974122,0.78860364,842.76,842.14,0.79791215]
[1757012974323,0.78860364,842.75,842.15,0.79791215]
[1757012974522,0.78860364,842.74,842.15,0.79791215]
[1757012975127,0.78860364,842.74,842.16,0.79791215]
[1757012975327,0.78860364,842.74,842.15,0.79791215]
[1757012975528,0.78860364,842.74,842.16,0.79791215]
[1757012976229,0.78860364,842.74,842.15,0.79791215]
[1757012976530,0.78860364,842.75,842.15,0.79791215]
[1757012978427,0.78860364,842.74,842.15,0.79791215]
[1757012980728,0.78860364,842.73,842.16,0.79791215]
[1757012981432,0.78860364,842.73,842.17,0.79791215]
[1757012981933,0.78860364,842.73,842.16,0.79791215]
[1757012982432,0.78860364,842.73,842.17,0.79791215]
[1757012982632,0.78860364,842.73,842.16,0.79791215]
[1757012983332,0.78860364,842.72,842.17,0.79791215]
[1757012985035,0.78860364,842.72,842.16,0.79791215]
[1757012985234,0.79625791,842.71,842.15,0.79979317]
[1757012985430,0.79625791,842.71,842.16,0.79979317]
[1757012986331,0.79625791,842.71,842.15,0.79979317]
[1757012986533,0.79625791,842.71,842.16,0.79979317]
[1757012987535,0.79625791,842.71,842.17,0.79979317]
[1757012990738,0.79625791,842.71,842.16,0.79979317]
[1757012992438,0.79625791,842.72,842.16,0.79979317]
[1757012993139,0.79625791,842.72,842.02,1.0629753]
[1757012993140,0.79625791,842.76,842.13,0.79979317]
[1757012995643,0.79625791,842.77,842.13,0.79979317]
[1757012997045,0.79625791,842.78,842.12,0.79979317]
[1757012997842,0.79625791,842.78,842.11,0.79979317]
[1757013000044,0.20641426,843.15,842.11,0.79979317]
[1757013000045,0.79625791,842.79,842.11,0.79979317]
[1757013002951,0.79625791,842.77,842.12,0.79979317]
[1757013003150,0.79625791,842.78,842.12,0.79979317]
[1757013003354,0.79625791,842.77,842.12,0.79979317]
[1757013003854,0.79625791,842.77,842.13,0.79979317]
[1757013004051,0.79625791,842.78,842.12,0.79979317]
[1757013005152,1.0598737,842.96,841.94,1.0629753]
[1757013005355,0.79616767,842.77,842.12,0.79988057]
[1757013005555,0.79616767,842.8,842.12,0.79988057]
[1757013005851,0.79616767,842.82,842.15,0.79988057]
[1757013006251,0.79616767,842.82,842.16,0.79988057]
[1757013007052,0.79616767,842.86,842.21,0.79988057]
[1757013007356,0.79616767,842.89,842.24,0.79988057]
[1757013007856,1.0598737,843.07,842.06,1.0629753]
[1757013008052,0.79626842,842.89,842.24,0.79975999]
[1757013008256,0.79626842,842.88,842.24,0.79975999]
[1757013008658,0.79626842,842.9,842.26,0.79975999]
[1757013009356,0.79626842,842.88,842.27,0.79975999]
[1757013010255,0.79626842,842.87,842.27,0.79975999]
[1757013010655,0.79626842,842.88,842.27,0.79975999]
[1757013013859,0.79626842,842.89,842.26,0.79975999]
[1757013015564,0.79626842,842.9,842.26,0.79975999]
[1757013016263,0.79626842,842.9,842.25,0.79975999]
[1757013018367,0.79626842,842.91,842.25,0.79975999]
[1757013019265,0.79626842,842.91,842.24,0.79975999]
[1757013020567,0.79626842,842.91,841.9,1.594463]
[1757013020568,0.79626842,842.91,842.25,0.79975999]
[1757013021065,0.79626842,842.92,842.24,0.79975999]
[1757013023564,0.79626842,842.91,842.24,0.79975999]
[1757013024267,0.79626842,842.92,842.24,0.79975999]
[1757013024763,0.20641426,843.15,842.24,0.79975999]
[1757013024764,0.79626842,842.91,842.24,0.79975999]
[1757013025868,0.79626842,842.92,842.24,0.79975999]
[1757013029167,0.79626842,842.9,842.25,0.79975999]
[1757013029474,0.79626842,842.91,842.24,0.79975999]
[1757013029668,0.79626842,842.96,842.21,0.79975999]
[1757013035874,0.79626842,842.95,842.21,0.79975999]
[1757013038676,0.79626842,842.96,842.21,0.79975999]
[1757013039577,0.79626842,842.91,842.24,0.79975999]
[1757013040881,0.79626842,842.97,842.2,0.79975999]
[1757013041181,0.79626842,843.01,842.23,0.79975999]
[1757013041781,0.79626842,843.05,842.26,0.79975999]
[1757013043881,0.79626842,843.06,842.27,0.79975999]
[1757013045484,0.79626842,843.07,842.27,0.79975999]
[1757013049691,0.79626842,843.06,842.27,0.79975999]
[1757013050191,0.79626842,843.07,842.27,0.79975999]
[1757013050388,0.79626842,843.06,842.27,0.79975999]
[1757013050891,0.79626842,842.99,842.32,0.79975999]
[1757013051591,0.79626842,842.98,842.33,0.79975999]
[1757013052190,0.79626842,843.0,842.32,0.79975999]
[1757013052894,0.79626842,842.99,842.32,0.79975999]
[1757013056593,0.20641426,843.15,842.31,0.79975999]
[1757013060901,0.20641426,843.15,842.3,0.79975999]
[1757013061398,0.20641426,843.15,842.32,0.79975999]
[1757013062101,0.20641426,843.15,842.33,0.79975999]
[1757013064703,0.20641426,843.15,842.36,0.79975999]
[1757013065199,0.20641426,843.15,842.35,0.79975999]
[1757013065504,0.79626842,843.23,842.36,0.79975999]
[1757013065704,0.20642712,842.97,842.36,0.79975999]
[1757013066304,0.20642712,842.97,842.4,0.79975999]
[1757013066501,0.20642712,842.97,842.41,0.79975999]
[1757013068206,0.20642712,842.97,842.4,0.79975999]
[1757013071705,0.20642712,842.97,842.38,0.79975999]
[1757013073408,0.20642712,842.97,842.35,0.79975999]
[1757013075712,0.20642712,842.97,842.36,0.79975999]
[1757013075912,0.20642712,842.97,842.35,0.79975999]
[1757013076114,0.20642712,842.97,842.28,0.79975999]
[1757013077212,0.20642712,842.97,842.29,0.79975999]
[1757013079915,0.20642712,842.97,842.34,0.79975999]
[1757013080916,0.20642712,842.97,842.32,0.79975999]
[1757013082412,0.20642712,842.97,842.33,0.79975999]
[1757013083118,0.20642712,842.97,842.34,0.79975999]
[1757013085619,0.20642712,842.97,842.35,0.79975999]
[1757013085914,0.20642712,842.97,842.34,0.79975999]
[1757013086314,0.20642712,842.97,842.33,0.79975999]
[1757013086818,0.20642712,842.97,841.34,0.20648652]
[1757013086819,0.20642712,842.97,842.31,0.79975999]
[1757013087214,0.20642712,842.97,842.35,0.79975999]
[1757013087414,0.20642712,842.97,842.4,0.79975999]
[1757013087621,0.20642712,842.97,842.41,0.79975999]
[1757013087820,0.20642712,842.97,842.43,0.79975999]
[1757013088221,0.20642712,842.97,842.42,0.79975999]
[1757013088521,0.20642712,842.97,842.43,0.79975999]
[1757013091528,0.79626842,843.17,842.45,0.79975999]
[1757013091828,0.20641549,843.06,842.45,0.79975999]
[1757013093231,0.20641549,843.06,842.44,0.79975999]
[1757013093727,0.20641549,843.06,842.54,0.79975999]
[1757013094239,0.20641549,843.06,842.53,0.79975999]
[1757013096331,0.20641549,843.06,842.52,0.79975999]
[1757013096734,0.79626842,843.4,842.52,0.79975999]
[1757013096931,0.20638182,843.17,842.53,0.79975999]
[1757013097535,0.20638182,843.17,842.54,0.79975999]
[1757013098337,0.20638182,843.17,842.59,0.79975999]
[1757013099134,0.20638182,843.17,842.61,0.79975999]
[1757013103040,0.20638182,843.17,842.6,0.79975999]
[1757013103536,0.20638182,843.17,842.61,0.79975999]
[1757013104237,0.20638182,843.17,842.6,0.79975999]
[1757013105451,0.20638182,843.17,842.59,0.79975999]
[1757013105943,0.79626842,843.5,842.59,0.79975999]
[1757013106141,0.20635184,843.33,842.59,0.79975999]
[1757013108147,0.20635184,843.33,842.62,0.79975999]
[1757013108746,0.20635184,843.33,842.65,0.79975999]
[1757013110249,0.20635184,843.33,842.64,0.79975999]
[1757013112146,0.20635184,843.33,842.59,0.79975999]
[1757013113447,0.20635184,843.33,842.58,0.79975999]
[1757013115250,0.20635184,843.33,842.57,0.79975999]
[1757013115750,0.20635184,843.33,841.32,2.6574383]
[1757013115751,0.20635184,843.33,842.58,0.79975999]
[1757013116251,0.20635184,843.33,842.57,0.79975999]
[1757013120354,0.20635184,843.33,842.56,0.79975999]
[1757013120754,0.20635184,843.33,842.57,0.79975999]
[1757013121658,0.20635184,843.33,842.56,0.79975999]
[1757013122158,0.20635184,843.33,842.58,0.79975999]
[1757013123358,0.20635184,843.33,842.57,0.79975999]
[1757013124458,0.20635184,843.33,842.56,0.79975999]
[1757013125159,0.20635184,843.33,842.57,0.79975999]
[1757013125456,0.20635184,843.33,842.56,0.79975999]
[1757013127257,0.20635184,843.33,842.56,0.79574132]
[1757013131364,0.20635184,843.33,842.57,0.79574132]
[1757013133369,0.20635184,843.33,842.58,0.79574132]
[1757013134166,0.20635184,843.33,842.59,0.79574132]
[1757013137071,0.20635184,843.33,842.57,0.79574132]
[1757013137267,0.20635184,843.33,842.39,1.0629753]
[1757013137268,0.20635184,843.33,842.58,0.79574132]
[1757013137971,0.20635184,843.33,842.59,0.79574132]
[1757013138372,0.20635184,843.33,842.61,0.79574132]
[1757013139272,0.20635184,843.33,842.62,0.79574132]
[1757013140370,0.20635184,843.33,842.63,0.79574132]
[1757013141175,0.20635184,843.33,842.64,0.79574132]
[1757013142374,0.20635184,843.33,842.66,0.79574132]
[1757013142573,0.20635184,843.33,842.62,0.79574132]
[1757013143370,0.20635184,843.33,842.63,0.79574132]
[1757013144170,0.20635184,843.33,842.64,0.79574132]
[1757013145173,0.20635184,843.33,842.65,0.79574132]
[1757013145574,0.20635184,843.33,842.66,0.79574132]
[1757013146375,0.20635184,843.33,842.67,0.79574132]
[1757013146977,0.20635184,843.33,842.68,0.79574132]
[1757013147476,0.20635184,843.33,842.69,0.79574132]
[1757013148378,0.20635184,843.33,842.7,0.79574132]
[1757013149377,0.20635184,843.33,842.71,0.79574132]
[1757013149580,0.20635184,843.33,842.71,0.79809489]
[1757013150376,0.20635184,843.33,842.72,0.79809489]
[1757013151176,0.20635184,843.33,842.73,0.79809489]
[1757013152375,0.20635184,843.33,842.77,0.79809489]
[1757013152979,0.20635184,843.33,842.78,0.79809489]
[1757013153378,0.20635184,843.33,842.79,0.79809489]
[1757013154384,0.20635184,843.33,842.8,0.79809489]
[1757013154982,0.92665684,843.33,842.8,0.79809489]
[1757013155182,0.720305,843.32,842.81,0.79809489]
[1757013155377,0.20635184,843.33,842.81,0.79809489]
[1757013156580,0.20635184,843.33,842.64,1.0629753]
[1757013156581,0.20635184,843.33,842.82,0.79809489]
[1757013158280,0.20635184,843.33,842.83,0.79809489]
[1757013160686,0.20635184,843.33,842.85,0.79809489]
[1757013160887,0.20635184,843.33,842.86,0.79809489]
[1757013162385,0.20635184,843.33,842.7,1.0629753]
[1757013162386,0.20635184,843.33,842.87,0.79809489]
[1757013162784,0.20635184,843.33,842.86,0.79809489]
[1757013162985,0.92665684,843.33,842.86,0.79809489]
[1757013163184,0.720305,843.32,842.86,0.79809489]
[1757013163490,0.20635184,843.33,842.86,0.79809489]
[1757013167392,0.20635184,843.33,842.87,0.79809489]
[1757013169994,0.20635184,843.33,842.88,0.79809489]
[1757013170888,0.20635184,843.33,842.87,0.79809489]
[1757013172290,0.20635184,843.33,842.88,0.79809489]
[1757013172797,1.72641893,843.33,842.88,0.79809489]
[1757013172993,0.72344451,843.32,842.88,0.79809489]
[1757013174597,0.72344451,843.32,842.89,0.79809489]
[1757013174598,1.52006709,843.32,842.89,0.79809489]
[1757013174795,0.72344451,843.31,842.89,0.79809489]
[1757013175198,0.72380812,843.31,842.89,0.79809489]
[1757013175399,0.72380812,843.31,842.87,0.79809489]
[1757013175595,0.72380812,843.32,842.87,0.79809489]
[1757013175899,0.20635184,843.33,842.87,0.79809489]
[1757013176502,0.9301632,843.33,842.86,0.79809489]
[1757013176700,0.72381136,843.32,842.86,0.79809489]
[1757013177302,0.72381136,843.32,842.87,0.79809489]
[1757013178002,0.20635184,843.33,842.87,0.79809489]
[1757013178502,0.20635184,843.33,842.86,0.79809489]
[1757013180100,0.93017495,843.33,842.86,0.79809489]
[1757013180303,0.72382311,843.32,842.86,0.79809489]
[1757013180501,0.20635184,843.33,842.86,0.79809489]
[1757013180800,0.20635184,843.33,842.7,1.0629753]
[1757013180801,0.20635184,843.33,842.87,0.79809489]
[1757013181504,0.20635184,843.33,842.85,0.79809489]
[1757013185307,0.20635184,843.33,842.86,0.79809489]
[1757013185504,0.20635184,843.33,842.9,0.79809489]
[1757013186204,0.79662258,843.47,842.9,0.79809489]
[1757013186410,0.20632982,843.44,842.9,0.79809489]
[1757013186805,0.93066736,843.44,842.9,0.79809489]
[1757013187105,0.72433754,843.43,842.9,0.79809489]
[1757013187708,0.72433754,843.43,842.71,1.0629753]
[1757013187709,0.20632982,843.44,842.92,0.79809489]
[1757013188103,0.93066736,843.44,842.92,0.79809489]
[1757013188405,0.72433754,843.43,842.92,0.79809489]
[1757013188709,0.72433754,843.43,842.91,0.79809489]
[1757013189408,0.20632982,843.44,842.72,1.0629753]
[1757013189409,0.20632982,843.44,842.9,0.79809489]
[1757013190208,0.20632982,843.44,842.91,0.79809489]
[1757013190504,0.20632982,843.44,842.9,0.79809489]
[1757013191004,0.20632982,843.44,841.81,0.20633655]
[1757013191005,0.20632982,843.44,842.93,0.79809489]
[1757013191306,0.20632982,843.44,842.99,0.79809489]
[1757013192605,0.20632982,843.44,842.98,0.79809489]
[1757013193407,0.20632982,843.44,842.97,0.79809489]
[1757013193604,0.20632982,843.44,842.98,0.79809489]
[1757013194410,0.20632982,843.44,842.97,0.79809489]
[1757013196009,0.20632982,843.44,842.98,0.79809489]
[1757013197409,0.20632982,843.44,842.97,0.79809489]
[1757013199413,0.20632982,843.44,842.96,0.79809489]
[1757013200519,0.20632982,843.44,842.97,0.79809489]
[1757013202316,0.20632982,843.44,842.96,0.79809489]
[1757013203219,0.20632982,843.44,842.95,0.79809489]
[1757013204621,0.20632982,843.44,842.94,0.79809489]
[1757013205322,0.20632982,843.44,842.93,0.79809489]
[1757013207526,0.20632982,843.44,842.91,0.79809489]
[1757013208723,0.72318233,843.55,842.91,0.79809489]
[1757013209024,0.20629924,843.58,842.94,0.79809489]
[1757013210023,0.92948157,843.58,842.94,0.79809489]
[1757013210227,0.72318233,843.57,842.94,0.79809489]
[1757013210523,0.20629924,843.58,842.93,0.79809489]
[1757013211029,0.20629924,843.58,842.94,0.79809489]
[1757013211330,0.20629924,843.58,843.01,0.79809489]
[1757013213428,0.20629924,843.58,843.0,0.79809489]
[1757013220136,0.20629924,843.58,842.99,0.79809489]
[1757013220333,0.20629924,843.58,842.98,0.79809489]
[1757013221135,0.20629924,843.58,843.0,0.79809489]
[1757013221536,0.20629924,843.58,842.98,0.79809489]
[1757013222137,0.20629924,843.58,842.96,0.79809489]
[1757013223436,0.20629924,843.58,842.95,0.79809489]
[1757013230537,0.20629924,843.58,842.96,0.79809489]
[1757013231243,0.20629924,843.58,842.97,0.79809489]
[1757013233242,0.20629924,843.58,842.98,0.79809489]
[1757013234544,0.20629924,843.58,842.97,0.79809489]
[1757013235545,0.20629924,843.58,842.98,0.79809489]
[1757013236240,0.20629924,843.58,842.97,0.79809489]
[1757013236541,0.20629924,843.58,842.98,0.79809489]
[1757013237741,0.20629924,843.58,842.99,0.79809489]
[1757013238740,0.20629924,843.58,842.98,0.79809489]
[1757013239545,0.20629924,843.58,842.97,0.79809489]
[1757013240441,0.20629924,843.58,842.76,0.79809489]
[1757013241645,0.92975932,843.58,842.76,0.79809489]
[1757013241945,0.72346008,843.57,842.76,0.79809489]
[1757013242244,0.20629924,843.58,842.76,0.79809489]
[1757013242446,0.20629924,843.58,842.77,0.79809489]
[1757013243140,0.20629924,843.58,842.78,0.79809489]
[1757013243346,0.20629924,843.58,842.8,0.79809489]
[1757013243746,0.20629924,843.58,842.81,0.79809489]
[1757013244344,0.20629924,843.58,842.82,0.79809489]
[1757013245346,0.20629924,843.58,842.83,0.79809489]
[1757013248247,0.20629924,843.58,840.95,3.7204137]
[1757013248248,0.20629924,843.58,842.82,0.79809489]
[1757013248543,0.20629924,843.58,842.83,0.79809489]
[1757013250143,0.20629924,843.58,842.86,0.79809489]
[1757013251446,0.93008031,843.58,842.86,0.79809489]
[1757013251649,0.72378107,843.57,842.86,0.79809489]
[1757013251945,0.20629924,843.58,842.86,0.79809489]
[1757013253050,0.20629924,843.58,842.87,0.79809489]
[1757013253245,0.20629924,843.58,842.88,0.79809489]
[1757013253446,0.20629924,843.58,842.91,0.79809489]
[1757013253750,0.20629924,843.58,842.95,0.79809489]
[1757013254251,0.93008031,843.58,842.96,0.79809489]
[1757013254451,0.72378107,843.57,842.98,0.79809489]
[1757013254652,0.20629924,843.58,842.98,0.79809489]
[1757013254849,0.20629924,843.58,842.81,1.0629753]
[1757013254850,0.20629924,843.58,842.99,0.79809489]
[1757013255749,0.20629924,843.58,843.01,0.79809489]
[1757013256553,0.20629924,843.58,843.0,0.79809489]
[1757013257356,0.20629924,843.58,843.04,0.79809489]
[1757013257553,0.93008031,843.58,843.04,0.79809489]
[1757013257757,0.72378107,843.57,843.04,0.79809489]
[1757013258058,0.20629924,843.58,843.04,0.79809489]
[1757013260057,0.20629924,843.58,843.02,0.79809489]
[1757013260257,0.20629924,843.58,843.03,0.79809489]
[1757013269763,0.20629924,843.58,843.05,0.79809489]
[1757013269964,0.20629924,843.58,842.73,1.594463]
[1757013269965,0.20629924,843.58,843.06,0.79809489]
[1757013271468,0.20629924,843.58,843.05,0.79809489]
[1757013272468,0.20629924,843.58,843.06,0.79809489]
[1757013272768,0.20629924,843.58,842.95,0.79809489]
[1757013282675,0.20629924,843.58,843.03,0.79809489]
[1757013286676,0.20629924,843.58,843.04,0.79809489]
[1757013292378,0.20629924,843.58,843.08,0.79809489]
[1757013294979,0.20629924,843.58,843.09,0.79809489]
[1757013295280,0.20629924,843.58,842.95,1.0629753]
[1757013295281,0.20629924,843.58,843.1,0.79809489]
[1757013299281,0.20629924,843.58,843.09,0.79809489]
[1757013300684,0.20629924,843.58,843.08,0.79809489]
[1757013301384,0.20629924,843.58,842.94,1.0629753]
[1757013301385,0.20629924,843.58,843.09,0.79809489]
[1757013302187,0.20629924,843.58,843.07,0.79809489]
[1757013302388,0.20629924,843.58,843.06,0.79809489]
[1757013302584,0.79662258,843.78,843.11,0.79809489]
[1757013302888,0.20626684,843.72,843.14,0.79809489]
[1757013307491,0.20626684,843.72,843.15,0.79809489]
[1757013308687,0.20626684,843.72,843.16,0.79809489]
[1757013312296,0.20626684,843.72,843.17,0.79809489]
[1757013312993,0.20626684,843.72,843.18,0.79809489]
[1757013313496,0.20626684,843.72,843.19,0.79809489]
[1757013313893,0.20626684,843.72,843.18,0.79809489]
[1757013315196,0.20626684,843.72,843.17,0.79809489]